[Event "Titled Tuesday Blitz November 14 Late 2023"]
[White "Gurevich, Dmitry"]
[Black "Pakleza, Zbigniew"]
[WhiteFideId "2000407"]
[BlackFideId "1119290"]
[WhiteElo "2473"]
[BlackElo "2801"]
[Result "0-1"]
[Round "11"]
[TimeControl "180+1"]
[Date "2023.11.14"]
[WhiteClock "0:00:00"]
[BlackClock "0:01:39"]
[Board "20"]

1. d4 {[%clk 0:03:00]}  d6 {[%clk 0:02:57]} 2. Nf3 {[%clk 0:02:58]}  Bg4 {[%clk 0:02:57]} 3. e4 {[%clk 0:02:54]}  Nf6 {[%clk 0:02:57]} 4. Nc3 {[%clk 0:02:52]}  e6 {[%clk 0:02:57]} 5. Be2 {[%clk 0:02:48]}  Be7 {[%clk 0:02:57]} 6. O-O {[%clk 0:02:47]}  O-O {[%clk 0:02:57]} 7. h3 {[%clk 0:02:46]}  Bh5 {[%clk 0:02:57]} 8. Bf4 {[%clk 0:02:43]}  d5 {[%clk 0:02:57]} 9. e5 {[%clk 0:02:32]}  Nfd7 {[%clk 0:02:56]} 10. a4 {[%clk 0:02:17]}  c5 {[%clk 0:02:55]} 11. dxc5 {[%clk 0:02:13]}  Nc6 {[%clk 0:02:52]} 12. Nb5 {[%clk 0:01:50]}  Bxc5 {[%clk 0:02:44]} 13. Nd6 {[%clk 0:01:40]}  Rb8 {[%clk 0:02:31]} 14. Re1 {[%clk 0:01:19]}  Bxf3 {[%clk 0:02:18]} 15. Bxf3 {[%clk 0:01:16]}  Ndxe5 {[%clk 0:02:19]} 16. Bxe5 {[%clk 0:01:05]}  Nxe5 {[%clk 0:02:18]} 17. Rxe5 {[%clk 0:00:52]}  Qxd6 {[%clk 0:02:15]} 18. Re2 {[%clk 0:00:45]}  Rbc8 {[%clk 0:02:09]} 19. c3 {[%clk 0:00:44]}  a5 {[%clk 0:02:09]} 20. Qd3 {[%clk 0:00:40]}  Qb6 {[%clk 0:02:02]} 21. Rae1 {[%clk 0:00:35]}  g6 {[%clk 0:01:59]} 22. g3 {[%clk 0:00:34]}  Rfd8 {[%clk 0:01:57]} 23. Kg2 {[%clk 0:00:33]}  d4 {[%clk 0:01:55]} 24. c4 {[%clk 0:00:31]}  Rd6 {[%clk 0:01:44]} 25. b3 {[%clk 0:00:29]}  Qb4 {[%clk 0:01:44]} 26. Rc1 {[%clk 0:00:14]}  Rb6 {[%clk 0:01:42]} 27. Rb1 {[%clk 0:00:07]}  Qc3 {[%clk 0:01:38]} 28. Qxc3 {[%clk 0:00:05]}  dxc3 {[%clk 0:01:39]} 29. Rc2 {[%clk 0:00:00]}  Bd4 {[%clk 0:01:39]} 0-1


[Site "https://www.chess.com"]

[Event "Titled Tuesday Blitz November 14 Late 2023"]
[White "Chylewski, Patryk"]
[Black "Maksimovic, Bojan"]
[WhiteFideId "1186191"]
[BlackFideId "14408120"]
[WhiteElo "2575"]
[BlackElo "2780"]
[Result "0-1"]
[Round "11"]
[TimeControl "180+1"]
[Date "2023.11.14"]
[WhiteClock "0:00:00"]
[BlackClock "0:01:49"]
[Board "21"]

1. c4 {[%clk 0:03:00]}  a6 {[%clk 0:03:00]} 2. d4 {[%clk 0:02:47]}  b5 {[%clk 0:03:00]} 3. e4 {[%clk 0:02:39]}  bxc4 {[%clk 0:02:59]} 4. Bxc4 {[%clk 0:02:38]}  e6 {[%clk 0:02:59]} 5. Nc3 {[%clk 0:02:36]}  Nf6 {[%clk 0:02:58]} 6. e5 {[%clk 0:02:20]}  d5 {[%clk 0:02:58]} 7. exf6 {[%clk 0:01:44]}  dxc4 {[%clk 0:02:57]} 8. fxg7 {[%clk 0:01:40]}  Bxg7 {[%clk 0:02:58]} 9. Qa4+ {[%clk 0:01:31]}  Nd7 {[%clk 0:02:53]} 10. Qxc4 {[%clk 0:01:29]}  Nb6 {[%clk 0:02:53]} 11. Qc6+ {[%clk 0:01:25]}  Bd7 {[%clk 0:02:52]} 12. Qe4 {[%clk 0:01:23]}  f5 {[%clk 0:02:41]} 13. Qe2 {[%clk 0:01:15]}  O-O {[%clk 0:02:27]} 14. Nf3 {[%clk 0:01:15]}  Kh8 {[%clk 0:02:24]} 15. O-O {[%clk 0:01:14]}  Rg8 {[%clk 0:02:24]} 16. Ne5 {[%clk 0:00:55]}  Be8 {[%clk 0:02:19]} 17. Rd1 {[%clk 0:00:43]}  Nd5 {[%clk 0:02:17]} 18. Qf3 {[%clk 0:00:32]}  Bxe5 {[%clk 0:01:57]} 19. dxe5 {[%clk 0:00:32]}  Bc6 {[%clk 0:01:55]} 20. Nxd5 {[%clk 0:00:13]}  Bxd5 {[%clk 0:01:55]} 21. Rxd5 {[%clk 0:00:12]}  Qxd5 {[%clk 0:01:54]} 22. Qxd5 {[%clk 0:00:12]}  exd5 {[%clk 0:01:55]} 23. Be3 {[%clk 0:00:12]}  Rgb8 {[%clk 0:01:50]} 24. Bd4 {[%clk 0:00:07]}  Rb4 {[%clk 0:01:49]} 25. Rd1 {[%clk 0:00:04]}  Kg8 {[%clk 0:01:49]} 26. f4 {[%clk 0:00:03]}  Kf7 {[%clk 0:01:49]} 27. g3 {[%clk 0:00:03]}  Ke6 {[%clk 0:01:49]} 28. b3 {[%clk 0:00:02]}  a5 {[%clk 0:01:48]} 29. Kf2 {[%clk 0:00:01]}  a4 {[%clk 0:01:49]} 30. bxa4 {[%clk 0:00:01]}  Rbxa4 {[%clk 0:01:49]} 31. Be3 {[%clk 0:00:00]}  Rxa2+ {[%clk 0:01:49]} 0-1


[Site "https://www.chess.com"]

[Event "Titled Tuesday Blitz November 14 Late 2023"]
[White "Bettalli, Francesco"]
[Black "Arifarsky"]
[WhiteFideId "2816453"]
[WhiteElo "2586"]
[BlackElo "2741"]
[Result "0-1"]
[Round "11"]
[TimeControl "180+1"]
[Date "2023.11.14"]
[WhiteClock "0:00:02"]
[BlackClock "0:00:28"]
[Board "22"]

1. e4 {[%clk 0:03:00]}  c5 {[%clk 0:02:59]} 2. Nc3 {[%clk 0:03:01]}  g6 {[%clk 0:02:59]} 3. Bc4 {[%clk 0:02:59]}  Bg7 {[%clk 0:02:58]} 4. h4 {[%clk 0:02:59]}  h6 {[%clk 0:02:54]} 5. Qf3 {[%clk 0:02:58]}  e6 {[%clk 0:02:53]} 6. d4 {[%clk 0:02:53]}  Nc6 {[%clk 0:02:49]} 7. dxc5 {[%clk 0:02:49]}  Qa5 {[%clk 0:02:45]} 8. Bd2 {[%clk 0:02:05]}  Qxc5 {[%clk 0:02:37]} 9. Bb3 {[%clk 0:02:02]}  Nge7 {[%clk 0:02:26]} 10. Nge2 {[%clk 0:02:00]}  a6 {[%clk 0:02:24]} 11. h5 {[%clk 0:02:01]}  g5 {[%clk 0:02:24]} 12. Be3 {[%clk 0:02:01]}  Qa5 {[%clk 0:02:23]} 13. O-O {[%clk 0:01:59]}  O-O {[%clk 0:02:20]} 14. Qg3 {[%clk 0:02:00]}  f5 {[%clk 0:02:19]} 15. f4 {[%clk 0:02:00]}  g4 {[%clk 0:02:12]} 16. e5 {[%clk 0:01:56]}  b5 {[%clk 0:02:05]} 17. Rfd1 {[%clk 0:01:53]}  Qc7 {[%clk 0:02:05]} 18. Bc5 {[%clk 0:01:48]}  Rf7 {[%clk 0:02:03]} 19. Qe3 {[%clk 0:01:46]}  Bb7 {[%clk 0:02:00]} 20. Bb6 {[%clk 0:01:44]}  Qc8 {[%clk 0:02:00]} 21. Rd6 {[%clk 0:01:43]}  Qe8 {[%clk 0:01:54]} 22. Rad1 {[%clk 0:01:43]}  Nc8 {[%clk 0:01:54]} 23. R6d2 {[%clk 0:01:39]}  Kh7 {[%clk 0:01:41]} 24. Bc5 {[%clk 0:01:37]}  Na5 {[%clk 0:01:41]} 25. Nd4 {[%clk 0:01:30]}  Nxb3 {[%clk 0:01:40]} 26. axb3 {[%clk 0:01:31]}  Ne7 {[%clk 0:01:32]} 27. Nde2 {[%clk 0:01:16]}  Nd5 {[%clk 0:01:28]} 28. Nxd5 {[%clk 0:01:16]}  Bxd5 {[%clk 0:01:29]} 29. Nc3 {[%clk 0:01:13]}  Bc6 {[%clk 0:01:28]} 30. b4 {[%clk 0:01:12]}  Bf8 {[%clk 0:01:21]} 31. Ra1 {[%clk 0:01:12]}  Rg7 {[%clk 0:01:18]} 32. Bxf8 {[%clk 0:00:57]}  Qxf8 {[%clk 0:01:18]} 33. Ne2 {[%clk 0:00:58]}  Qxb4 {[%clk 0:01:14]} 34. c3 {[%clk 0:00:56]}  Qf8 {[%clk 0:01:11]} 35. Ng3 {[%clk 0:00:56]}  Qb8 {[%clk 0:01:01]} 36. Rd6 {[%clk 0:00:56]}  Qa7 {[%clk 0:00:57]} 37. Kf2 {[%clk 0:00:56]}  Rgg8 {[%clk 0:00:55]} 38. Qxa7 {[%clk 0:00:48]}  Rxa7 {[%clk 0:00:56]} 39. Ke3 {[%clk 0:00:48]}  Kg7 {[%clk 0:00:54]} 40. Ra5 {[%clk 0:00:48]}  Kf7 {[%clk 0:00:54]} 41. Ne2 {[%clk 0:00:44]}  Bxg2 {[%clk 0:00:51]} 42. Raxa6 {[%clk 0:00:33]}  Rxa6 {[%clk 0:00:51]} 43. Rxa6 {[%clk 0:00:34]}  g3 {[%clk 0:00:51]} 44. Ra1 {[%clk 0:00:27]}  Bc6 {[%clk 0:00:47]} 45. Rg1 {[%clk 0:00:27]}  g2 {[%clk 0:00:47]} 46. Kf2 {[%clk 0:00:26]}  Rg4 {[%clk 0:00:46]} 47. Rd1 {[%clk 0:00:19]}  Ke7 {[%clk 0:00:40]} 48. Rd4 {[%clk 0:00:14]}  Rh4 {[%clk 0:00:38]} 49. Ng1 {[%clk 0:00:14]}  Rxh5 {[%clk 0:00:38]} 50. Rd3 {[%clk 0:00:14]}  Rh4 {[%clk 0:00:36]} 51. Ke3 {[%clk 0:00:13]}  h5 {[%clk 0:00:35]} 52. Rd2 {[%clk 0:00:13]}  Rh1 {[%clk 0:00:33]} 53. Kf2 {[%clk 0:00:13]}  Be4 {[%clk 0:00:31]} 54. Re2 {[%clk 0:00:13]}  Rh4 {[%clk 0:00:31]} 55. Ke3 {[%clk 0:00:12]}  Rg4 {[%clk 0:00:30]} 56. Re1 {[%clk 0:00:08]}  h4 {[%clk 0:00:29]} 57. Ne2 {[%clk 0:00:03]}  h3 {[%clk 0:00:28]} 58. Kf2 {[%clk 0:00:03]}  h2 {[%clk 0:00:28]} 59. Ng3 {[%clk 0:00:02]}  Rxg3 {[%clk 0:00:28]} 0-1


[Site "https://www.chess.com"]

[Event "Titled Tuesday Blitz November 14 Late 2023"]
[White "Rohan, Ahuja"]
[Black "Omariev, Maksim"]
[WhiteFideId "5090598"]
[BlackFideId "4193423"]
[WhiteElo "2709"]
[BlackElo "2535"]
[Result "1-0"]
[Round "11"]
[TimeControl "180+1"]
[Date "2023.11.14"]
[WhiteClock "0:00:10"]
[BlackClock "0:00:03"]
[Board "23"]

1. Nf3 {[%clk 0:03:00]}  d5 {[%clk 0:02:59]} 2. g3 {[%clk 0:03:01]}  Nf6 {[%clk 0:02:59]} 3. Bg2 {[%clk 0:03:01]}  c6 {[%clk 0:02:59]} 4. c4 {[%clk 0:03:02]}  Bf5 {[%clk 0:02:55]} 5. Qb3 {[%clk 0:03:00]}  Qb6 {[%clk 0:02:44]} 6. cxd5 {[%clk 0:03:00]}  cxd5 {[%clk 0:02:37]} 7. Nc3 {[%clk 0:03:00]}  e6 {[%clk 0:02:34]} 8. d3 {[%clk 0:03:00]}  Qxb3 {[%clk 0:02:26]} 9. axb3 {[%clk 0:03:01]}  Bb4 {[%clk 0:02:26]} 10. O-O {[%clk 0:02:57]}  Nc6 {[%clk 0:02:24]} 11. Be3 {[%clk 0:02:53]}  O-O {[%clk 0:02:19]} 12. Nd4 {[%clk 0:02:52]}  Nxd4 {[%clk 0:02:17]} 13. Bxd4 {[%clk 0:02:53]}  a6 {[%clk 0:02:15]} 14. Ra4 {[%clk 0:02:53]}  Be7 {[%clk 0:02:11]} 15. e4 {[%clk 0:02:52]}  dxe4 {[%clk 0:02:10]} 16. dxe4 {[%clk 0:02:53]}  Bg6 {[%clk 0:01:56]} 17. e5 {[%clk 0:02:52]}  Ne8 {[%clk 0:01:39]} 18. Bxb7 {[%clk 0:02:26]}  Rb8 {[%clk 0:01:38]} 19. Bxa6 {[%clk 0:02:10]}  Rxb3 {[%clk 0:01:38]} 20. Ra2 {[%clk 0:02:11]}  Nc7 {[%clk 0:01:35]} 21. Bc4 {[%clk 0:01:31]}  Rb4 {[%clk 0:01:33]} 22. Ra4 {[%clk 0:01:24]}  Rfb8 {[%clk 0:01:09]} 23. b3 {[%clk 0:01:11]}  Bc2 {[%clk 0:01:08]} 24. Ra7 {[%clk 0:00:49]}  R8b7 {[%clk 0:00:48]} 25. Rxb7 {[%clk 0:00:35]}  Rxb7 {[%clk 0:00:49]} 26. Rc1 {[%clk 0:00:34]}  Bxb3 {[%clk 0:00:23]} 27. Bxb3 {[%clk 0:00:19]}  Rxb3 {[%clk 0:00:24]} 28. Ne4 {[%clk 0:00:18]}  Ne8 {[%clk 0:00:08]} 29. Rc8 {[%clk 0:00:17]}  Kf8 {[%clk 0:00:09]} 30. Nc5 {[%clk 0:00:16]}  Rb1+ {[%clk 0:00:05]} 31. Kg2 {[%clk 0:00:16]}  f6 {[%clk 0:00:02]} 32. exf6 {[%clk 0:00:14]}  gxf6 {[%clk 0:00:02]} 33. Nxe6+ {[%clk 0:00:14]}  Kf7 {[%clk 0:00:03]} 34. Nf4 {[%clk 0:00:14]}  Nd6 {[%clk 0:00:03]} 35. Rc2 {[%clk 0:00:14]}  Rd1 {[%clk 0:00:03]} 36. Be3 {[%clk 0:00:14]}  Ne4 {[%clk 0:00:03]} 37. Rc7 {[%clk 0:00:13]}  Nd6 {[%clk 0:00:03]} 38. Rd7 {[%clk 0:00:12]}  Ra1 {[%clk 0:00:03]} 39. Nd5 {[%clk 0:00:09]}  Nf5 {[%clk 0:00:03]} 40. Nxe7 {[%clk 0:00:08]}  Nxe7 {[%clk 0:00:03]} 41. Bc5 {[%clk 0:00:08]}  Re1 {[%clk 0:00:03]} 42. Rxe7+ {[%clk 0:00:09]}  Rxe7 {[%clk 0:00:04]} 43. Bxe7 {[%clk 0:00:10]}  Kxe7 {[%clk 0:00:04]} 44. Kf3 {[%clk 0:00:10]}  Kf7 {[%clk 0:00:05]} 45. Kf4 {[%clk 0:00:11]}  Kg6 {[%clk 0:00:05]} 46. g4 {[%clk 0:00:11]}  h5 {[%clk 0:00:04]} 47. gxh5+ {[%clk 0:00:10]}  Kxh5 {[%clk 0:00:03]} 48. Kf5 {[%clk 0:00:10]} 1-0


[Site "https://www.chess.com"]

[Event "Titled Tuesday Blitz November 14 Late 2023"]
[White "Solon, Nathan"]
[Black "Grossboss19"]
[WhiteFideId "2017229"]
[WhiteElo "2691"]
[BlackElo "2491"]
[Result "0-1"]
[Round "11"]
[TimeControl "180+1"]
[Date "2023.11.14"]
[WhiteClock "0:00:09"]
[BlackClock "0:00:11"]
[Board "24"]

1. d4 {[%clk 0:02:59]}  d5 {[%clk 0:02:45]} 2. Bf4 {[%clk 0:02:58]}  Nf6 {[%clk 0:02:43]} 3. e3 {[%clk 0:02:57]}  e6 {[%clk 0:02:44]} 4. Nf3 {[%clk 0:02:57]}  Bd6 {[%clk 0:02:42]} 5. Ne5 {[%clk 0:02:57]}  O-O {[%clk 0:02:40]} 6. Nd2 {[%clk 0:02:57]}  c5 {[%clk 0:02:39]} 7. c3 {[%clk 0:02:57]}  Nc6 {[%clk 0:02:37]} 8. Bd3 {[%clk 0:02:56]}  Qc7 {[%clk 0:02:33]} 9. Ndf3 {[%clk 0:02:56]}  Ne4 {[%clk 0:02:29]} 10. O-O {[%clk 0:02:50]}  f6 {[%clk 0:02:24]} 11. Nxc6 {[%clk 0:02:50]}  bxc6 {[%clk 0:02:18]} 12. Bxd6 {[%clk 0:02:46]}  Qxd6 {[%clk 0:02:16]} 13. Re1 {[%clk 0:02:30]}  f5 {[%clk 0:02:12]} 14. Ne5 {[%clk 0:02:19]}  cxd4 {[%clk 0:02:07]} 15. exd4 {[%clk 0:02:17]}  c5 {[%clk 0:02:04]} 16. Nf3 {[%clk 0:02:02]}  Ba6 {[%clk 0:02:00]} 17. Bxe4 {[%clk 0:01:46]}  fxe4 {[%clk 0:01:56]} 18. Ne5 {[%clk 0:01:46]}  Rf5 {[%clk 0:01:48]} 19. Rc1 {[%clk 0:01:31]}  Raf8 {[%clk 0:01:46]} 20. Rc2 {[%clk 0:01:32]}  Qe7 {[%clk 0:01:34]} 21. Qg4 {[%clk 0:01:29]}  cxd4 {[%clk 0:01:25]} 22. cxd4 {[%clk 0:01:28]}  Qb4 {[%clk 0:01:24]} 23. Rd1 {[%clk 0:01:22]}  e3 {[%clk 0:01:15]} 24. f4 {[%clk 0:00:49]}  e2 {[%clk 0:01:10]} 25. Rxe2 {[%clk 0:00:48]}  Bxe2 {[%clk 0:01:05]} 26. Qxe2 {[%clk 0:00:49]}  Rxf4 {[%clk 0:01:00]} 27. Nf3 {[%clk 0:00:32]}  Re4 {[%clk 0:00:55]} 28. Qc2 {[%clk 0:00:31]}  Qc4 {[%clk 0:00:49]} 29. Qxc4 {[%clk 0:00:26]}  dxc4 {[%clk 0:00:50]} 30. Rc1 {[%clk 0:00:26]}  Re2 {[%clk 0:00:45]} 31. Rxc4 {[%clk 0:00:24]}  Rxb2 {[%clk 0:00:40]} 32. Ra4 {[%clk 0:00:25]}  Rf7 {[%clk 0:00:38]} 33. h4 {[%clk 0:00:22]}  h6 {[%clk 0:00:38]} 34. Ra6 {[%clk 0:00:16]}  Rb6 {[%clk 0:00:30]} 35. Ra5 {[%clk 0:00:16]}  Rc7 {[%clk 0:00:27]} 36. Kh2 {[%clk 0:00:15]}  Rc2 {[%clk 0:00:26]} 37. Rxa7 {[%clk 0:00:14]}  Rbb2 {[%clk 0:00:26]} 38. Kh3 {[%clk 0:00:08]}  Rxg2 {[%clk 0:00:21]} 39. a4 {[%clk 0:00:08]}  Rgf2 {[%clk 0:00:21]} 40. Kg3 {[%clk 0:00:08]}  Rg2+ {[%clk 0:00:21]} 41. Kf4 {[%clk 0:00:09]}  Ra2 {[%clk 0:00:19]} 42. Ra8+ {[%clk 0:00:09]}  Kh7 {[%clk 0:00:19]} 43. h5 {[%clk 0:00:09]}  Rgf2 {[%clk 0:00:19]} 44. Ke3 {[%clk 0:00:09]}  Rf1 {[%clk 0:00:18]} 45. Ne5 {[%clk 0:00:09]}  Ra3+ {[%clk 0:00:17]} 46. Ke4 {[%clk 0:00:09]}  Re1+ {[%clk 0:00:17]} 47. Kf4 {[%clk 0:00:10]}  Rea1 {[%clk 0:00:17]} 48. Ra6 {[%clk 0:00:10]}  Rxa4 {[%clk 0:00:15]} 49. Rxe6 {[%clk 0:00:10]}  Rxd4+ {[%clk 0:00:16]} 50. Ke3 {[%clk 0:00:11]}  Rh4 {[%clk 0:00:12]} 51. Re8 {[%clk 0:00:09]}  Rxh5 {[%clk 0:00:12]} 52. Kd4 {[%clk 0:00:10]}  Rd1+ {[%clk 0:00:11]} 53. Kc5 {[%clk 0:00:09]}  Re1 {[%clk 0:00:09]} 54. Kd6 {[%clk 0:00:10]}  Rhxe5 {[%clk 0:00:09]} 55. Rxe5 {[%clk 0:00:11]}  Rxe5 {[%clk 0:00:10]} 56. Kxe5 {[%clk 0:00:09]}  Kg6 {[%clk 0:00:11]} 0-1


[Site "https://www.chess.com"]

[Event "Titled Tuesday Blitz November 14 Late 2023"]
[White "Djordjevic, Vuk"]
[Black "Lymar, Vladislav"]
[WhiteFideId "902098"]
[BlackFideId "14162180"]
[WhiteElo "2756"]
[BlackElo "2582"]
[Result "1-0"]
[Round "11"]
[TimeControl "180+1"]
[Date "2023.11.14"]
[WhiteClock "0:01:08"]
[BlackClock "0:00:32"]
[Board "26"]

1. d4 {[%clk 0:03:00]}  d6 {[%clk 0:02:58]} 2. Bg5 {[%clk 0:03:01]}  Nd7 {[%clk 0:02:56]} 3. Nf3 {[%clk 0:03:01]}  Ngf6 {[%clk 0:02:56]} 4. e3 {[%clk 0:03:01]}  e5 {[%clk 0:02:56]} 5. c4 {[%clk 0:02:59]}  Be7 {[%clk 0:02:56]} 6. Nc3 {[%clk 0:02:59]}  O-O {[%clk 0:02:56]} 7. Be2 {[%clk 0:02:59]}  c6 {[%clk 0:02:57]} 8. O-O {[%clk 0:02:59]}  h6 {[%clk 0:02:49]} 9. Bh4 {[%clk 0:02:59]}  e4 {[%clk 0:02:44]} 10. Nd2 {[%clk 0:02:55]}  d5 {[%clk 0:02:44]} 11. cxd5 {[%clk 0:02:43]}  cxd5 {[%clk 0:02:45]} 12. f3 {[%clk 0:02:44]}  exf3 {[%clk 0:02:39]} 13. Nxf3 {[%clk 0:02:44]}  Re8 {[%clk 0:02:39]} 14. Bd3 {[%clk 0:02:39]}  Qb6 {[%clk 0:02:05]} 15. Qc2 {[%clk 0:02:24]}  Nf8 {[%clk 0:01:53]} 16. Bxf6 {[%clk 0:02:23]}  Qxf6 {[%clk 0:01:54]} 17. Nxd5 {[%clk 0:02:23]}  Qe6 {[%clk 0:01:52]} 18. Nc7 {[%clk 0:02:03]}  Qxe3+ {[%clk 0:01:52]} 19. Kh1 {[%clk 0:02:03]}  Bg4 {[%clk 0:01:39]} 20. Rae1 {[%clk 0:02:02]}  Qf4 {[%clk 0:01:36]} 21. Nxa8 {[%clk 0:01:47]}  Rc8 {[%clk 0:01:10]} 22. Qb3 {[%clk 0:01:10]}  Be6 {[%clk 0:00:38]} 23. d5 {[%clk 0:01:08]}  Nd7 {[%clk 0:00:32]} 24. dxe6 {[%clk 0:01:08]} 1-0


[Site "https://www.chess.com"]

[Event "Titled Tuesday Blitz November 14 Late 2023"]
[White "Hambleton, Aman"]
[Black "Shapiro, Viktor"]
[WhiteFideId "2606577"]
[BlackFideId "4175700"]
[WhiteElo "2714"]
[BlackElo "2564"]
[Result "0-1"]
[Round "11"]
[TimeControl "180+1"]
[Date "2023.11.14"]
[WhiteClock "0:00:00"]
[BlackClock "0:00:20"]
[Board "29"]

1. d4 {[%clk 0:03:00]}  Nf6 {[%clk 0:03:00]} 2. c4 {[%clk 0:03:00]}  e6 {[%clk 0:02:59]} 3. Nc3 {[%clk 0:03:01]}  c5 {[%clk 0:02:59]} 4. d5 {[%clk 0:03:01]}  exd5 {[%clk 0:03:00]} 5. cxd5 {[%clk 0:03:02]}  d6 {[%clk 0:03:00]} 6. e4 {[%clk 0:03:02]}  g6 {[%clk 0:03:00]} 7. h3 {[%clk 0:03:03]}  Bg7 {[%clk 0:03:01]} 8. Nf3 {[%clk 0:03:04]}  O-O {[%clk 0:03:01]} 9. Bd3 {[%clk 0:03:04]}  b5 {[%clk 0:03:02]} 10. Nxb5 {[%clk 0:03:05]}  Nxe4 {[%clk 0:03:01]} 11. Bxe4 {[%clk 0:03:06]}  Re8 {[%clk 0:02:56]} 12. Ng5 {[%clk 0:03:06]}  f5 {[%clk 0:02:43]} 13. O-O {[%clk 0:00:05]}  fxe4 {[%clk 0:02:39]} 14. Re1 {[%clk 0:00:05]}  a6 {[%clk 0:02:34]} 15. Nc3 {[%clk 0:00:05]}  Bf5 {[%clk 0:02:14]} 16. g4 {[%clk 0:00:02]}  Bf6 {[%clk 0:01:59]} 17. Ngxe4 {[%clk 0:00:01]}  Bxe4 {[%clk 0:01:55]} 18. Nxe4 {[%clk 0:00:02]}  Bd4 {[%clk 0:01:50]} 19. Kg2 {[%clk 0:00:02]}  Nd7 {[%clk 0:01:46]} 20. Bg5 {[%clk 0:00:02]}  Qb6 {[%clk 0:01:44]} 21. Qc2 {[%clk 0:00:01]}  Rf8 {[%clk 0:01:32]} 22. Re2 {[%clk 0:00:01]}  Rae8 {[%clk 0:01:29]} 23. Rd1 {[%clk 0:00:01]}  Re5 {[%clk 0:01:18]} 24. Bh4 {[%clk 0:00:01]}  Rxd5 {[%clk 0:01:07]} 25. Bg3 {[%clk 0:00:01]}  Ne5 {[%clk 0:01:02]} 26. Bxe5 {[%clk 0:00:01]}  dxe5 {[%clk 0:01:00]} 27. b3 {[%clk 0:00:01]}  Rdd8 {[%clk 0:00:52]} 28. Rde1 {[%clk 0:00:02]}  Qc6 {[%clk 0:00:51]} 29. Kg1 {[%clk 0:00:02]}  Rf4 {[%clk 0:00:48]} 30. Qc4+ {[%clk 0:00:02]}  Kg7 {[%clk 0:00:48]} 31. Kh2 {[%clk 0:00:02]}  Rdf8 {[%clk 0:00:46]} 32. Qd3 {[%clk 0:00:03]}  Rf3 {[%clk 0:00:43]} 33. Qd1 {[%clk 0:00:01]}  R8f4 {[%clk 0:00:41]} 34. Qc2 {[%clk 0:00:01]}  h5 {[%clk 0:00:39]} 35. gxh5 {[%clk 0:00:01]}  gxh5 {[%clk 0:00:24]} 36. Rg1+ {[%clk 0:00:01]}  Kh6 {[%clk 0:00:22]} 37. Rg3 {[%clk 0:00:00]}  Qe6 {[%clk 0:00:20]} 0-1


[Site "https://www.chess.com"]

[Event "Titled Tuesday Blitz November 14 Late 2023"]
[White "Weimarraner"]
[Black "Adla, Diego"]
[BlackFideId "100072"]
[WhiteElo "2554"]
[BlackElo "2653"]
[Result "0-1"]
[Round "11"]
[TimeControl "180+1"]
[Date "2023.11.14"]
[WhiteClock "0:00:51"]
[BlackClock "0:01:56"]
[Board "31"]

1. d4 {[%clk 0:03:00]}  Nf6 {[%clk 0:02:57]} 2. Nf3 {[%clk 0:03:00]}  d5 {[%clk 0:02:57]} 3. e3 {[%clk 0:03:00]}  c5 {[%clk 0:02:55]} 4. dxc5 {[%clk 0:03:00]}  Qa5+ {[%clk 0:02:53]} 5. Nbd2 {[%clk 0:02:58]}  Qxc5 {[%clk 0:02:52]} 6. a3 {[%clk 0:02:59]}  Qc7 {[%clk 0:02:49]} 7. c4 {[%clk 0:02:59]}  g6 {[%clk 0:02:46]} 8. b4 {[%clk 0:02:58]}  Bg7 {[%clk 0:02:42]} 9. Bb2 {[%clk 0:02:58]}  O-O {[%clk 0:02:42]} 10. cxd5 {[%clk 0:02:58]}  Nxd5 {[%clk 0:02:41]} 11. Rc1 {[%clk 0:02:55]}  Qd8 {[%clk 0:02:38]} 12. Bxg7 {[%clk 0:02:55]}  Kxg7 {[%clk 0:02:39]} 13. Bc4 {[%clk 0:02:49]}  Nc6 {[%clk 0:02:36]} 14. O-O {[%clk 0:02:44]}  Nf6 {[%clk 0:02:29]} 15. Qb3 {[%clk 0:02:43]}  e6 {[%clk 0:02:25]} 16. Rfd1 {[%clk 0:02:43]}  Qe7 {[%clk 0:02:25]} 17. Qb2 {[%clk 0:02:42]}  Bd7 {[%clk 0:02:22]} 18. Ne4 {[%clk 0:02:39]}  Rfd8 {[%clk 0:02:16]} 19. g4 {[%clk 0:01:56]}  e5 {[%clk 0:02:08]} 20. Nxf6 {[%clk 0:01:39]}  Qxf6 {[%clk 0:02:08]} 21. Bd5 {[%clk 0:01:28]}  Bxg4 {[%clk 0:02:05]} 22. Bxc6 {[%clk 0:01:26]}  Rxd1+ {[%clk 0:01:55]} 23. Rxd1 {[%clk 0:00:51]}  bxc6 {[%clk 0:01:56]} 0-1


[Site "https://www.chess.com"]